[Event "FIDE WCCC U8 2018"]
[Site "Santiago de Compostela"]
[Date "2018.11.05"]
[Round "2"]
[White "Begmuratov, Khumoyun"]
[Black "Negron Lizarazo, Juan Sebastian"]
[Result "1-0"]
[ECO "B06"]
[WhiteElo "1880"]
[BlackElo "1340"]
[Annotator "NA RC"]
[PlyCount "77"]
[EventDate "2018.11.04"]
[EventType "swiss"]
[EventCountry "ESP"]
[SourceTitle "playchess.com"]
[Source "ChessBase"]
[SourceQuality "1"]
[TimeControl "40/5400+30:1800+30"]

{[%evp 8,59,31,30,43,36,23,-37,-72,-75,-32,-69,-43,-61,-50,-64,-42,-69,-97,-80,-15,-20,18,15,31,17,40,-7,80,-17,112,27,6,0,11,0,-4,-11,32767,32767,32767,32767,32767,32767,32767,32767,32767,32767,32767,32767,362,412,491,578]} 1. e4 {[%emt 0:00:00]} g6 {[%emt 0:00:42]} 2. d4 {[%emt 0:04:28]} Bg7 {[%emt 0:02:10]} 3. f4 {[%emt 0:02:38]} d6 {[%emt 0:04:29]} 4. Nf3 {[%emt 0:00:28]} c5 {[%emt 0:01:47] LiveBook: 48 Games} 5. c3 {[%emt 0:12:29]} cxd4 {[%emt 0:02:31]} 6. cxd4 {[%emt 0:00:21]} Bg4 {[%emt 0:05:05]} 7. e5 {[%emt 0:12:33] B06: Modern Defence} ({White should try} 7. Nc3 $14) (7. Be2 Qb6 8. Qa4+ Bd7 9. Qc4 Nc6 10. d5 Rc8 11. Qb3 Nd4 12. Qxb6 Nc2+ 13. Kd1 axb6 14. Nc3 Nxa1 {0-1 (32) Bouchenak,M (2419)-Nyvlt,Z (2426) ICCF email 2011}) 7... dxe5 $146 {[%emt 0:01:17]} ({Predecessor:} 7... e6 8. Bb5+ Nc6 9. O-O Nge7 10. Nc3 O-O 11. Be2 d5 12. Be3 Nf5 13. Bf2 Qb6 14. Na4 Qd8 {1-0 (35) Romani,C (1854)-Fernandez Gayoso,R (1556) Lima 2012}) 8. fxe5 {[%emt 0:00:52]} Nh6 {[%emt 0:02:56]} 9. Bb5+ {[%emt 0:05:45]} Nd7 {[%emt 0:01:37]} (9... Nc6 $17 10. Bxc6+ bxc6 11. Bxh6 Bxh6) 10. O-O {[%emt 0:00:51]} O-O {[%emt 0:00:51]} 11. Nc3 {[%emt 0:06:25]} Nf5 {[%emt 0:01:04]} 12. h3 {[%emt 0:03:30]} Bxf3 $1 13. Rxf3 {[%emt 0:00:05]} Nb6 {[%emt 0:01:51]} (13... Nxd4 $5 14. Qxd4 Nxe5 $17) 14. Be3 {[%emt 0:03:54]} Rc8 {[%emt 0:04:46]} 15. Bf2 {[%emt 0:03:44]} Nc4 {[%emt 0:06:28]} 16. Bxc4 {[%emt 0:01:40]} Rxc4 {[%emt 0:00:14]} 17. b3 {[%emt 0:00:03]} (17. g4 $14 Rxd4 18. Qb3) 17... Rb4 {[%emt 0:01:41]} (17... Rxd4 $11 {keeps the balance.} 18. Bxd4 Nxd4) 18. a3 {[%emt 0:01:16]} ({Better is} 18. Rd3 $14) 18... Rb6 {[%emt 0:02:16]} (18... Rxd4 $1 $11 19. Bxd4 Nxd4) 19. Rb1 {[%emt 0:06:27]} Rc6 {[%emt 0:01:31]} 20. b4 {[%emt 0:08:55]} Rc4 {[%emt 0:02:11]} 21. Qd3 {[%emt 0:00:16]} Qc7 {[%emt 0:01:05]} 22. g4 {[%emt 0:07:36]} Nh6 {[%emt 0:00:51]} 23. Nd5 {[%emt 0:00:33]} Rc1+ {[%emt 0:01:34]} 24. Kg2 {[%emt 0:00:07]} Qc2 {[%emt 0:01:33]} 25. Nxe7+ {[%emt 0:00:06]} Kh8 {[%emt 0:00:46]} 26. Rxc1 {[%emt 0:00:02]} Qxc1 {[%emt 0:00:57]} 27. Qe4 {[%emt 0:06:45]} Qc7 {[%emt 0:01:54]} 28. Nd5 {[%emt 0:00:14]} Qc6 {[%emt 0:01:23]} 29. Nf6 {[%emt 0:01:01]} Qc7 {[%emt 0:01:42]} 30. d5 $18 {[%emt 0:00:49]} Ng8 {[%emt 0:00:47]} 31. d6 {[%emt 0:00:53]} Qc8 {[%emt 0:02:10]} 32. d7 {[%emt 0:01:13]} Qb8 {[%emt 0:01:14]} 33. Nxg8 {[%emt 0:00:17]} Kxg8 {[%emt 0:00:13]} 34. e6 {[%emt 0:00:07]} fxe6 {[%emt 0:00:39]} 35. Qxe6+ {[%emt 0:00:05]} Kh8 {[%emt 0:00:19]} 36. Rxf8+ {[%emt 0:00:13]} Bxf8 {[%emt 0:05:54]} 37. Bd4+ {[%emt 0:00:07]} Bg7 {[%emt 0:00:25]} 38. Qe8+ {[%emt 0:00:07]} Qxe8 {[%emt 0:00:24]} 39. dxe8=Q# {[%emt 0:00:09]} 1-0

[Event "FIDE WCCC U8 2018"]
[Site "Santiago de Compostela"]
[Date "2018.11.05"]
[Round "2"]
[White "Hajdu, Marton Abris"]
[Black "Lam, Chun Yung Samuel"]
[Result "1-0"]
[ECO "B27"]
[WhiteElo "1755"]
[BlackElo "1309"]
[Annotator "NA RC"]
[PlyCount "117"]
[EventDate "2018.11.04"]
[EventType "swiss"]
[EventCountry "ESP"]
[SourceTitle "playchess.com"]
[Source "ChessBase"]
[SourceQuality "1"]
[TimeControl "40/5400+30:1800+30"]

1. e4 {[%emt 0:00:00]} c5 {[%emt 0:00:00]} 2. Nf3 {[%emt 0:00:01]} g6 {[%emt 0:00:00]} 3. d4 {[%emt 0:00:25]} cxd4 {[%emt 0:00:11]} 4. Qxd4 {[%emt 0:01:35]} Nf6 {[%emt 0:00:13]} 5. e5 {[%emt 0:00:51]} Nc6 {[%emt 0:00:12]} 6. Qc4 {[%emt 0:16:01]} d5 {[%emt 0:09:07]} 7. Qa4 {[%emt 0:04:19]} Nd7 {[%emt 0:11:41]} 8. Nc3 {[%emt 0:04:55]} e6 {[%emt 0:01:24]} 9. Bb5 {[%emt 0:06:16]} Qc7 {[%emt 0:00:24]} 10. Bxc6 {[%emt 0:10:15]} bxc6 {[%emt 0:03:43]} 11. O-O {[%emt 0:17:37]} Bg7 {[%emt 0:01:24]} 12. Bf4 {[%emt 0:03:01]} O-O {[%emt 0:01:31]} 13. Rfe1 {[%emt 0:02:40]} Rb8 {[%emt 0:01:05]} 14. b3 {[%emt 0:01:25]} a5 {[%emt 0:07:24]} 15. Qa3 {[%emt 0:03:10]} Ba6 {[%emt 0:03:31]} 16. Qc1 {[%emt 0:01:08]} Rfc8 {[%emt 0:03:27]} 17. Nd1 {[%emt 0:06:10]} c5 {[%emt 0:10:23]} 18. Qb2 {[%emt 0:02:28]} Rb4 {[%emt 0:00:47]} 19. Bg3 {[%emt 0:02:18]} c4 {[%emt 0:05:02]} 20. a3 Rb6 {[%emt 0:01:35]} 21. b4 {[%emt 0:03:39]} c3 {[%emt 0:01:32]} 22. Qc1 {[%emt 0:01:30]} axb4 {[%emt 0:01:05]} 23. axb4 {[%emt 0:00:06]} Rcb8 {[%emt 0:01:06]} 24. Re3 {[%emt 0:01:01]} Bh6 {[%emt 0:01:32]} 25. Bh4 {[%emt 0:00:57]} Bxe3 {[%emt 0:00:39]} 26. Qxe3 {[%emt 0:00:03]} Bc4 {[%emt 0:01:51]} 27. Qh6 {[%emt 0:00:45]} f5 {[%emt 0:04:05]} 28. exf6 {[%emt 0:00:52]} Nf8 {[%emt 0:00:19]} 29. Ng5 {[%emt 0:00:49]} Rxb4 {[%emt 0:02:16]} 30. f7+ Kh8 {[%emt 0:00:30]} 31. Nxh7 {[%emt 0:03:33]} Qxf7 {[%emt 0:03:26]} 32. Ng5+ {[%emt 0:00:17]} Kg8 {[%emt 0:00:07]} 33. Nxf7 {[%emt 0:00:06]} Kxf7 {[%emt 0:00:08]} 34. Ra7+ {[%emt 0:00:21]} R8b7 {[%emt 0:00:55]} 35. Qf4+ {[%emt 0:01:00]} Kg7 {[%emt 0:01:14]} 36. Bf6+ {[%emt 0:00:26]} Kg8 {[%emt 0:00:22]} 37. Rxb7 {[%emt 0:00:14]} Rxb7 {[%emt 0:00:06]} 38. Nxc3 {[%emt 0:01:56]} Ra7 {[%emt 0:01:09]} 39. h3 {[%emt 0:00:43]} Kh7 {[%emt 0:01:03]} 40. Qh4+ {[%emt 0:00:00]} Kg8 {[%emt 0:00:00]} 41. Qh8+ {[%emt 0:00:22]} Kf7 {[%emt 0:01:09]} 42. Qg7+ {[%emt 0:00:10]} Ke8 {[%emt 0:00:07]} 43. Qxa7 {[%emt 0:00:11]} Nd7 {[%emt 0:00:12]} 44. Qa8+ {[%emt 0:00:18]} Kf7 {[%emt 0:00:13]} 45. Qa7 {[%emt 0:00:36]} Kxf6 {[%emt 0:00:39]} 46. Qxd7 {[%emt 0:00:09]} Ke5 {[%emt 0:00:23]} 47. f4+ {[%emt 0:00:14]} Kd4 {[%emt 0:00:08]} 48. Na4 {[%emt 0:00:13]} Ke3 {[%emt 0:00:15]} 49. Qxe6+ {[%emt 0:00:15]} Kd2 {[%emt 0:00:19]} 50. Qxg6 {[%emt 0:00:22]} Bb5 {[%emt 0:00:30]} 51. Nb2 {[%emt 0:00:31]} Kc1 {[%emt 0:00:09]} 52. f5 {[%emt 0:00:26]} Kxb2 {[%emt 0:00:16]} 53. f6 {[%emt 0:00:06]} Bd3 {[%emt 0:00:46]} 54. cxd3 {[%emt 0:00:14]} d4 {[%emt 0:00:07]} 55. f7 {[%emt 0:00:13]} Kb3 {[%emt 0:00:14]} 56. f8=Q {[%emt 0:00:16]} Kc3 {[%emt 0:00:13]} 57. Qc8+ {[%emt 0:00:07]} Kd2 {[%emt 0:00:15]} 58. Qg3 {[%emt 0:00:33]} Ke2 {[%emt 0:00:30]} 59. Qc2# {[%emt 0:00:11]} 1-0

[Event "FIDE WCCC U8 2018"]
[Site "Santiago de Compostela"]
[Date "2018.11.05"]
[Round "2"]
[White "Zverev, Lev"]
[Black "Mrinmoy Rajkhowa"]
[Result "0-1"]
[ECO "C77"]
[WhiteElo "1723"]
[BlackElo "1294"]
[Annotator "NA RC"]
[PlyCount "80"]
[EventDate "2018.11.04"]
[EventType "swiss"]
[EventCountry "ESP"]
[SourceTitle "playchess.com"]
[Source "ChessBase"]
[SourceQuality "1"]
[TimeControl "40/5400+30:1800+30"]

1. e4 {[%emt 0:00:00]} e5 {[%emt 0:00:00]} 2. Nf3 {[%emt 0:00:00]} Nc6 {[%emt 0:00:00]} 3. Bb5 {[%emt 0:00:00]} a6 {[%emt 0:00:00]} 4. Ba4 {[%emt 0:00:00]} Nf6 {[%emt 0:00:42]} 5. d3 {[%emt 0:00:00]} b5 {[%emt 0:00:38]} 6. Bb3 {[%emt 0:00:01]} Be7 {[%emt 0:00:38]} 7. c3 {[%emt 0:00:08]} d6 {[%emt 0:01:16]} 8. O-O {[%emt 0:00:08]} O-O {[%emt 0:02:42]} 9. Nbd2 {[%emt 0:00:08]} Na5 {[%emt 0:00:49]} 10. Bc2 {[%emt 0:00:17]} c5 {[%emt 0:00:55]} 11. Re1 {[%emt 0:00:39]} Nc6 {[%emt 0:02:37]} 12. Nf1 {[%emt 0:00:20]} Be6 {[%emt 0:01:35]} 13. Ng3 {[%emt 0:00:17]} Qc7 {[%emt 0:01:52]} 14. h3 {[%emt 0:00:15]} h6 {[%emt 0:05:00]} 15. Be3 {[%emt 0:00:24]} d5 {[%emt 0:05:00]} 16. Rc1 {[%emt 0:03:24]} dxe4 {[%emt 0:05:10]} 17. dxe4 {[%emt 0:00:41]} Rfd8 {[%emt 0:00:11]} 18. Nd2 {[%emt 0:00:06]} Rd7 {[%emt 0:04:44]} 19. Qf3 {[%emt 0:02:17]} Na5 {[%emt 0:03:36]} 20. Nf5 {[%emt 0:01:27]} Bf8 {[%emt 0:02:23]} 21. Nxh6+ {[%emt 0:01:06]} gxh6 {[%emt 0:00:41]} 22. Qxf6 {[%emt 0:00:06]} Bg7 {[%emt 0:02:12]} 23. Qh4 {[%emt 0:00:11]} Kh7 {[%emt 0:00:53]} 24. Nf3 {[%emt 0:00:21]} f6 {[%emt 0:01:09]} 25. b3 {[%emt 0:01:09]} Rad8 {[%emt 0:05:11]} 26. g4 {[%emt 0:00:30]} Rg8 {[%emt 0:03:26]} 27. Kh1 {[%emt 0:00:27]} Qc6 {[%emt 0:09:34]} 28. Rg1 {[%emt 0:02:47]} Bf7 {[%emt 0:03:11]} 29. g5 {[%emt 0:01:42]} h5 {[%emt 0:07:43]} 30. Bd1 {[%emt 0:04:24]} Bg6 {[%emt 0:02:40]} 31. Nd2 {[%emt 0:01:52]} f5 {[%emt 0:02:39]} 32. Bxh5 {[%emt 0:00:32]} Rh8 {[%emt 0:01:32]} 33. Bxg6+ {[%emt 0:02:19]} Kxg6 {[%emt 0:00:10]} 34. Qg3 {[%emt 0:00:06]} Rd3 {[%emt 0:03:32]} 35. h4 {[%emt 0:05:46]} f4 {[%emt 0:02:28]} 36. Qg4 {[%emt 0:00:06]} Qd7 {[%emt 0:00:22]} 37. f3 {[%emt 0:09:13]} Qxg4 {[%emt 0:02:17]} 38. Rxg4 {[%emt 0:00:10]} fxe3 {[%emt 0:00:58]} 39. Nf1 {[%emt 0:00:08]} e2 {[%emt 0:00:12]} 40. Nh2 {[%emt 0:00:00]} Rxh4 0-1

[Event "FIDE WCCC U8 2018"]
[Site "Santiago de Compostela"]
[Date "2018.11.05"]
[Round "2"]
[White "Azadaliyev, Jahandar"]
[Black "Kiaan Agrawal"]
[Result "1-0"]
[ECO "E20"]
[WhiteElo "1674"]
[BlackElo "1281"]
[Annotator "NA RC"]
[PlyCount "91"]
[EventDate "2018.11.04"]
[EventType "swiss"]
[EventCountry "ESP"]
[SourceTitle "playchess.com"]
[Source "ChessBase"]
[SourceQuality "1"]
[TimeControl "40/5400+30:1800+30"]

1. d4 {[%emt 0:00:00]} Nf6 {[%emt 0:00:02]} 2. c4 {[%emt 0:00:00]} e6 {[%emt 0:01:41]} 3. Nc3 {[%emt 0:00:22]} Bb4 {[%emt 0:00:43]} 4. g3 Bxc3+ {[%emt 0:01:25]} 5. bxc3 {[%emt 0:01:03]} d6 {[%emt 0:00:39]} 6. Bg2 {[%emt 0:00:37]} O-O {[%emt 0:02:20]} 7. Nf3 {[%emt 0:01:26]} Nc6 {[%emt 0:08:18]} 8. O-O {[%emt 0:01:33]} e5 {[%emt 0:04:10]} 9. Qc2 {[%emt 0:08:56]} Re8 {[%emt 0:03:40]} 10. Bg5 {[%emt 0:16:24]} h6 {[%emt 0:02:25]} 11. Bxf6 {[%emt 0:00:52]} Qxf6 {[%emt 0:00:17]} 12. d5 {[%emt 0:00:28]} Ne7 {[%emt 0:01:53]} 13. e4 {[%emt 0:01:12]} b6 {[%emt 0:08:32]} 14. Nd2 {[%emt 0:01:55]} Ng6 {[%emt 0:09:45]} 15. Rae1 {[%emt 0:02:02]} a5 {[%emt 0:03:13]} 16. Qd1 {[%emt 0:05:47]} Bd7 {[%emt 0:06:05]} 17. Qe2 {[%emt 0:11:20]} Kh7 {[%emt 0:05:47]} 18. Qe3 {[%emt 0:07:06]} Rf8 {[%emt 0:07:31]} 19. f4 {[%emt 0:01:26]} exf4 {[%emt 0:00:31]} 20. gxf4 {[%emt 0:01:04]} Rae8 {[%emt 0:01:59]} 21. Qg3 {[%emt 0:00:24]} Qh4 {[%emt 0:01:50]} 22. Qxh4 {[%emt 0:01:35]} Nxh4 {[%emt 0:00:12]} 23. Kf2 {[%emt 0:00:06]} Nxg2 {[%emt 0:02:37]} 24. Kxg2 {[%emt 0:00:22]} Re7 {[%emt 0:01:30]} 25. e5 Rfe8 {[%emt 0:03:44]} 26. Nf3 {[%emt 0:01:59]} Bg4 {[%emt 0:02:02]} 27. Nd4 {[%emt 0:00:19]} Bd7 {[%emt 0:01:27]} 28. Re3 {[%emt 0:02:47]} g5 {[%emt 0:03:50]} 29. Ref3 {[%emt 0:11:06]} g4 {[%emt 0:00:54]} 30. Re3 {[%emt 0:00:08]} dxe5 {[%emt 0:03:42]} 31. fxe5 {[%emt 0:00:01]} Kg7 {[%emt 0:00:25]} 32. Rfe1 {[%emt 0:00:42]} Kg6 {[%emt 0:01:28]} 33. Kg3 {[%emt 0:08:02]} h5 {[%emt 0:02:38]} 34. Kf4 {[%emt 0:00:31]} Kh6 {[%emt 0:03:48]} 35. e6 {[%emt 0:01:46]} fxe6 {[%emt 0:00:14]} 36. Nf5+ {[%emt 0:00:17]} exf5 {[%emt 0:00:22]} 37. Rxe7 {[%emt 0:00:08]} Rxe7 {[%emt 0:00:09]} 38. Rxe7 {[%emt 0:00:54]} Ba4 {[%emt 0:00:14]} 39. Rxc7 {[%emt 0:00:13]} b5 {[%emt 0:00:07]} 40. c5 {[%emt 0:00:00]} b4 {[%emt 0:00:00]} 41. cxb4 {[%emt 0:00:12]} axb4 {[%emt 0:00:19]} 42. d6 {[%emt 0:00:08]} b3 {[%emt 0:00:04]} 43. axb3 Bxb3 {[%emt 0:00:05]} 44. d7 {[%emt 0:00:19]} Ba4 {[%emt 0:00:07]} 45. d8=Q {[%emt 0:00:10]} Bb5 {[%emt 0:00:06]} 46. Qf6# {[%emt 0:00:13]} 1-0

[Event "FIDE WCCC U8 2018"]
[Site "Santiago de Compostela"]
[Date "2018.11.05"]
[Round "2"]
[White "Grooten, Tommy"]
[Black "Ivancescu, Bogdan-Andrei"]
[Result "1-0"]
[ECO "B46"]
[WhiteElo "1649"]
[BlackElo "1233"]
[Annotator "NA RC"]
[PlyCount "99"]
[EventDate "2018.11.04"]
[EventType "swiss"]
[EventCountry "ESP"]
[SourceTitle "playchess.com"]
[Source "ChessBase"]
[SourceQuality "1"]
[TimeControl "40/5400+30:1800+30"]

1. e4 {[%emt 0:00:00]} c5 {[%emt 0:00:00]} 2. Nf3 {[%emt 0:00:00]} e6 {[%emt 0:00:00]} 3. d4 {[%emt 0:00:00]} cxd4 {[%emt 0:00:00]} 4. Nxd4 {[%emt 0:00:00]} a6 {[%emt 0:00:06]} 5. Nc3 {[%emt 0:00:00]} Nc6 {[%emt 0:00:05]} 6. f4 {[%emt 0:00:37]} Qc7 {[%emt 0:02:40]} 7. Be3 {[%emt 0:00:05]} d6 {[%emt 0:03:32]} 8. Qf3 {[%emt 0:01:31]} Nf6 {[%emt 0:01:39]} 9. O-O-O {[%emt 0:01:05]} Bd7 {[%emt 0:04:14]} 10. g4 {[%emt 0:01:41]} e5 {[%emt 0:04:45]} 11. Nf5 {[%emt 0:00:47]} g6 {[%emt 0:02:00]} 12. g5 {[%emt 0:00:10]} Nh5 {[%emt 0:04:08]} 13. Nd5 {[%emt 0:00:53]} Qc8 {[%emt 0:15:48]} 14. Nb6 {[%emt 0:00:39]} Qb8 {[%emt 0:00:07]} 15. Nxa8 {[%emt 0:00:24]} Qxa8 {[%emt 0:00:12]} 16. Nxd6+ {[%emt 0:00:07]} Bxd6 {[%emt 0:00:36]} 17. Rxd6 {[%emt 0:00:07]} Ke7 {[%emt 0:01:37]} 18. Rd1 {[%emt 0:04:31]} Rc8 {[%emt 0:03:31]} 19. Kb1 {[%emt 0:01:36]} b5 {[%emt 0:09:49]} 20. Bh3 {[%emt 0:00:26]} Rc7 {[%emt 0:04:36]} 21. Bxd7 {[%emt 0:00:26]} Rxd7 {[%emt 0:00:15]} 22. Rxd7+ {[%emt 0:00:05]} Kxd7 {[%emt 0:00:10]} 23. Rd1+ {[%emt 0:00:03]} Ke8 {[%emt 0:00:32]} 24. Qg4 {[%emt 0:00:38]} Qb7 {[%emt 0:00:31]} 25. f5 {[%emt 0:00:39]} Qc8 {[%emt 0:02:36]} 26. Rd2 {[%emt 0:02:20]} Ng7 {[%emt 0:01:35]} 27. Qh4 {[%emt 0:01:54]} Nh5 {[%emt 0:00:09]} 28. Rd1 {[%emt 0:01:19]} Nb4 {[%emt 0:03:34]} 29. Rc1 {[%emt 0:00:14]} Qc4 {[%emt 0:00:34]} 30. b3 {[%emt 0:00:28]} Qc3 {[%emt 0:02:12]} 31. Qe1 {[%emt 0:00:16]} Qxe1 {[%emt 0:01:48]} 32. Rxe1 {[%emt 0:00:07]} Kd7 {[%emt 0:00:23]} 33. Rf1 {[%emt 0:00:14]} Ke8 {[%emt 0:00:34]} 34. a3 {[%emt 0:00:19]} Nc6 {[%emt 0:00:08]} 35. f6 {[%emt 0:00:41]} Kd7 {[%emt 0:00:41]} 36. Rd1+ {[%emt 0:00:10]} Kc8 {[%emt 0:01:04]} 37. Rd5 {[%emt 0:00:58]} Nf4 {[%emt 0:04:40]} 38. Bxf4 {[%emt 0:00:09]} exf4 {[%emt 0:00:05]} 39. Rd1 {[%emt 0:00:45]} f3 {[%emt 0:00:48]} 40. Rf1 {[%emt 0:00:00]} Ne5 {[%emt 0:00:00]} 41. Kb2 {[%emt 0:00:40]} Kc7 {[%emt 0:04:44]} 42. h3 {[%emt 0:00:28]} a5 {[%emt 0:01:00]} 43. Kc3 {[%emt 0:00:22]} Kc6 {[%emt 0:00:19]} 44. Kd4 {[%emt 0:00:18]} Kd6 {[%emt 0:00:15]} 45. Ke3 {[%emt 0:01:35]} Kc6 {[%emt 0:02:45]} 46. Rxf3 {[%emt 0:01:35]} Nxf3 {[%emt 0:00:13]} 47. Kxf3 {[%emt 0:00:06]} b4 {[%emt 0:00:43]} 48. a4 {[%emt 0:00:06]} Kb6 {[%emt 0:02:33]} 49. e5 {[%emt 0:00:12]} Kc6 {[%emt 0:00:14]} 50. e6 {[%emt 0:00:07]} 1-0

[Event "FIDE WCCC U8 2018"]
[Site "Santiago de Compostela"]
[Date "2018.11.05"]
[Round "2"]
[White "Arora, Abhiraaj"]
[Black "Finek, Vaclav"]
[Result "0-1"]
[ECO "D92"]
[WhiteElo "1407"]
[BlackElo "1942"]
[Annotator "NA RC"]
[PlyCount "80"]
[EventDate "2018.11.04"]
[EventType "swiss"]
[EventCountry "ESP"]
[SourceTitle "playchess.com"]
[Source "ChessBase"]
[SourceQuality "1"]
[TimeControl "40/5400+30:1800+30"]

{[%evp 9,78,35,44,44,32767,32767,32767,29,37,12,50,33,39,41,49,49,61,43,42,29,33,41,32,8,39,17,25,6,52,42,52,0,7,20,18,0,57,39,40,21,241,14,14,32767,0,0,0,0,0,-97,32767,32767,32767,32767,-29,-471,-456,-470,-485,-479,-500,-508,32767,32767,32767,32767,32767,-1629,-1942,-29998,-29999]} 1. Nf3 {[%emt 0:00:00]} Nf6 {[%emt 0:00:00]} 2. d4 {[%emt 0:00:00]} g6 {[%emt 0:00:00]} 3. c4 {[%emt 0:00:00]} Bg7 {[%emt 0:00:53]} 4. Nc3 {[%emt 0:00:33]} d5 {[%emt 0:00:12]} 5. Bf4 {[%emt 0:01:08]} c6 {[%emt 0:00:18]} 6. e3 {[%emt 0:01:05]} O-O {[%emt 0:00:22]} 7. cxd5 {[%emt 0:01:34]} cxd5 {[%emt 0:00:09]} 8. Be2 {[%emt 0:04:39] LiveBook: 30 Games} Nc6 {[%emt 0:05:30]} 9. O-O {[%emt 0:01:34]} Bg4 {[%emt 0:10:21] D90: Grünfeld: 4 Nf3 Bg7 sidelines} 10. h3 {[%emt 0:07:11]} Bxf3 {[%emt 0:00:12]} 11. Bxf3 {[%emt 0:00:13]} Rc8 {[%emt 0:05:15]} (11... e6 12. Qc1 Qe7 13. Na4 Rac8 14. Qc5 {½-½ (14) Gajewski,G (2653)-Kempinski,R (2569) Achaia 2013}) 12. Rc1 {[%emt 0:07:15]} Re8 $146 {[%emt 0:17:42]} ({Predecessor:} 12... e6 13. Na4 Nd7 14. Be2 e5 15. dxe5 Ndxe5 16. Qb3 d4 17. Rfd1 {1-0 (30) Teske,H (2531)-Trzaska,P (2201) Essen 2003}) 13. Qb3 {[%emt 0:09:15]} Na5 $1 {[%emt 0:01:12]} 14. Qb5 {[%emt 0:03:21]} a6 {[%emt 0:01:08]} 15. Qd3 {[%emt 0:01:55]} Qd7 {[%emt 0:08:34]} 16. Ne2 {[%emt 0:03:35]} b5 {[%emt 0:08:54]} 17. b3 {[%emt 0:06:34]} Qb7 {[%emt 0:13:22]} 18. Ng3 {[%emt 0:05:22]} Bf8 {[%emt 0:08:10]} 19. Be5 {[%emt 0:08:20]} Nd7 {[%emt 0:00:45]} 20. Bf4 {[%emt 0:04:11]} (20. Qd2 $14 b4 21. Bf4) 20... e6 {[%emt 0:00:22]} 21. e4 {[%emt 0:04:18]} Nb6 {[%emt 0:05:46]} 22. Qd2 {[%emt 0:02:56]} b4 {[%emt 0:00:31]} (22... Nc6 $11) 23. Bh6 {[%emt 0:01:15]} Bxh6 {[%emt 0:00:41]} 24. Qxh6 {[%emt 0:00:44]} Nd7 $2 {[%emt 0:02:26]} (24... Nc6 $14) 25. e5 $2 {[%emt 0:02:15]} (25. exd5 $18 exd5 26. Qg5) 25... Qb6 {[%emt 0:00:28]} 26. Ne2 {[%emt 0:01:57]} Nc6 {[%emt 0:00:32]} 27. Rfd1 {[%emt 0:01:25]} Ne7 {[%emt 0:00:28]} 28. Rxc8 {[%emt 0:01:01]} Rxc8 {[%emt 0:00:01]} 29. Ng3 {[%emt 0:00:27]} (29. Qd2 $11) 29... Rc3 {[%emt 0:01:28]} 30. Ne2 {[%emt 0:02:13]} Nf5 {[%emt 0:00:28]} 31. Qg5 {[%emt 0:01:29]} Rc2 {[%emt 0:01:35]} 32. g4 $2 {[%emt 0:03:52]} (32. Bg4 $15) 32... h6 {[%emt 0:00:35]} 33. Qf4 {[%emt 0:01:38]} g5 {[%emt 0:00:21]} 34. Qh2 {[%emt 0:00:20]} Nh4 {[%emt 0:00:09]} 35. Qg3 {[%emt 0:00:52]} Qb5 {[%emt 0:00:48]} 36. Nc1 {[%emt 0:01:05]} Rc3 {[%emt 0:00:43]} 37. Rf1 {[%emt 0:02:48]} Rxf3 {[%emt 0:00:27]} 38. Qh2 {[%emt 0:00:20]} Rc3 $19 {[%emt 0:00:33]} 39. Kh1 {[%emt 0:00:21]} Qxf1+ {[%emt 0:00:02]} 40. Qg1 {[%emt 0:00:00]} Rxh3# 0-1

[Event "FIDE WCCC U8 2018"]
[Site "Santiago de Compostela"]
[Date "2018.11.05"]
[Round "2"]
[White "Asikainen, Eeli"]
[Black "Nurgaliyev, Sauat"]
[Result "1-0"]
[ECO "B22"]
[WhiteElo "1358"]
[BlackElo "1764"]
[Annotator "NA RC"]
[PlyCount "82"]
[EventDate "2018.11.04"]
[EventType "swiss"]
[EventCountry "ESP"]
[SourceTitle "playchess.com"]
[Source "ChessBase"]
[SourceQuality "1"]
[TimeControl "40/5400+30:1800+30"]

1. e4 {[%emt 0:00:00]} c5 {[%emt 0:00:00]} 2. c3 {[%emt 0:00:00]} Nf6 {[%emt 0:00:00]} 3. e5 {[%emt 0:00:00]} Nd5 {[%emt 0:00:17]} 4. d4 {[%emt 0:00:00]} cxd4 {[%emt 0:00:15]} 5. cxd4 {[%emt 0:00:07]} e6 {[%emt 0:00:18]} 6. Nf3 {[%emt 0:00:30]} b6 {[%emt 0:03:32]} 7. Nc3 {[%emt 0:00:55]} Nxc3 {[%emt 0:01:13]} 8. bxc3 {[%emt 0:00:12]} Qc7 {[%emt 0:00:41]} 9. Bb2 {[%emt 0:02:30]} Be7 {[%emt 0:01:33]} 10. Bd3 {[%emt 0:01:27]} Ba6 {[%emt 0:01:17]} 11. Bxa6 {[%emt 0:04:13]} Nxa6 {[%emt 0:00:06]} 12. O-O {[%emt 0:01:30]} O-O {[%emt 0:03:19]} 13. Qd3 {[%emt 0:04:06]} Nb8 {[%emt 0:03:51]} 14. Qe4 {[%emt 0:02:56]} Nc6 {[%emt 0:04:06]} 15. Qg4 {[%emt 0:02:25]} f5 {[%emt 0:10:40]} 16. Qg3 {[%emt 0:03:45]} Na5 {[%emt 0:03:34]} 17. Nd2 {[%emt 0:01:52]} g5 {[%emt 0:09:47]} 18. h4 {[%emt 0:04:18]} g4 {[%emt 0:02:53]} 19. h5 {[%emt 0:00:30]} Kh8 {[%emt 0:05:17]} 20. Nb3 {[%emt 0:07:51]} Rg8 {[%emt 0:06:15]} 21. f3 {[%emt 0:06:09]} Rg5 {[%emt 0:05:58]} 22. Bc1 {[%emt 0:00:30]} Rxh5 {[%emt 0:00:30]} 23. fxg4 {[%emt 0:00:30]} Rg8 {[%emt 0:00:30]} 24. Qf3 {[%emt 0:00:30]} Rxg4 {[%emt 0:00:30]} 25. Qa8+ {[%emt 0:12:40]} Rg8 {[%emt 0:06:53]} 26. Qf3 {[%emt 0:03:18]} Rh4 {[%emt 0:01:40]} 27. Nxa5 {[%emt 0:00:30]} bxa5 {[%emt 0:00:30]} 28. Rb1 {[%emt 0:02:58]} Rhg4 {[%emt 0:03:25]} 29. Rf2 {[%emt 0:01:23]} Rg3 {[%emt 0:01:06]} 30. Qb7 {[%emt 0:01:49]} Qxc3 {[%emt 0:01:11]} 31. Bf4 {[%emt 0:03:38]} R3g7 {[%emt 0:02:34]} 32. Bh6 {[%emt 0:03:17]} Rg6 {[%emt 0:01:51]} 33. Qxd7 {[%emt 0:02:26]} Qh3 {[%emt 0:05:05]} 34. Qb7 {[%emt 0:06:38]} Rxh6 {[%emt 0:00:48]} 35. g3 {[%emt 0:01:03]} Rxg3+ {[%emt 0:01:47]} 36. Rg2 {[%emt 0:00:32]} Rxg2+ {[%emt 0:00:18]} 37. Qxg2 {[%emt 0:00:16]} Rg6 {[%emt 0:00:08]} 38. Qxg6 {[%emt 0:01:50]} Qe3+ {[%emt 0:00:10]} 39. Kh1 {[%emt 0:00:21]} hxg6 {[%emt 0:00:10]} 40. Rb8+ {[%emt 0:00:00]} Kg7 {[%emt 0:00:00]} 41. Rb3 {[%emt 0:01:11]} Qxd4 1-0